bitfinex-derivatives/quotes_ETHF0:USTF0_20250209
["timestamp","ask_amount","ask_price","bid_price","bid_amount"]
[1739061040617,0.00570396,2633.1,2633.0,4.91527088]
[1739061041120,0.00570396,2633.1,2633.0,1.70747088]
[1739061041318,0.00570396,2633.1,2633.0,4.91527088]
[1739061042019,0.00570396,2633.1,2633.0,4.91518882]
[1739061047824,0.00570396,2633.1,2633.0,4.9151271]
[1739061049729,0.00570396,2633.1,2633.0,4.91511987]
[1739061051629,0.00570396,2633.1,2633.0,1.70731987]
[1739061051821,0.00570396,2633.1,2633.0,4.91520221]
[1739061052331,0.00570396,2633.1,2633.0,4.9152034]
[1739061052533,0.00570396,2633.1,2633.0,4.91525428]
[1739061055734,0.00570396,2633.1,2633.0,4.91542361]
[1739061057630,0.00570396,2633.1,2633.0,4.42585641]
[1739061057835,0.00570396,2633.1,2633.0,4.91551854]
[1739061058135,0.00570396,2633.1,2633.0,4.42585641]
[1739061058434,0.00570396,2633.1,2633.0,4.91551876]
[1739061058636,0.00570396,2633.1,2633.0,4.42585641]
[1739061059038,0.00570396,2633.1,2633.0,4.91554652]
[1739061059338,0.00570396,2633.1,2633.0,4.9155466]
[1739061059532,0.00570396,2633.1,2633.0,4.42585641]
[1739061060235,0.00570396,2633.1,2633.0,1.21805641]
[1739061060438,0.00570396,2633.1,2633.0,1.7078069]
[1739061060641,1.1497,2633.5,2633.0,6.13366331]
[1739061060845,0.29141337,2633.6,2633.4,5.64391282]
[1739061061132,1.21805641,2634.9,2633.5,3.28225049]
[1739061061133,3.2078,2634.4,2633.5,3.28225049]
[1739061061329,3.2078,2634.4,2634.3,1.21805641]
[1739061061738,3.2078,2634.7,2634.3,1.7077593]
[1739061061933,3.2078,2634.7,2634.6,1.21805641]
[1739061065350,3.2078,2634.7,2634.4,1.21805641]
[1739061065351,9.2078,2634.7,2634.4,1.21805641]
[1739061065540,1.7036,2634.6,2634.4,1.21805641]
[1739061066741,1.7036,2634.6,2634.1,2.72610051]
[1739061070344,3.2078,2634.4,2634.1,2.72610051]
[1739061071746,3.2078,2634.4,2634.2,0.5873]
[1739061074044,1.7036,2634.6,2634.2,0.5873]
[1739061074249,1.7036,2634.6,2634.5,2.72039655]
[1739061076252,1.7036,2634.6,2634.2,2.72039655]
[1739061077257,2.46261,2634.6,2634.2,2.72039655]
[1739061077459,1.7036,2634.6,2634.2,2.72039655]
[1739061078351,3.2078,2634.3,2634.1,0.00570396]
[1739061078551,0.5721,2634.2,2634.1,0.00570396]
[1739061083569,0.5721,2634.2,2633.6,2.72039655]
[1739061083570,11.64774786,2634.2,2633.6,2.72039655]
[1739061083759,3.2078,2633.9,2633.3,2.72039655]
[1739061084857,3.21350396,2633.9,2633.3,2.72610051]
[1739061086965,0.5614,2633.8,2633.3,2.72610051]
[1739061088862,3.7692,2633.8,2633.6,2.72039655]
[1739061089271,0.5614,2633.8,2633.6,2.72039655]
[1739061091073,0.5614,2633.8,2633.7,1.1732]
[1739061091271,0.5614,2633.8,2633.7,1.7735]
[1739061091470,0.00570396,2633.9,2633.7,1.7735]
[1739061092470,0.00570396,2633.9,2633.7,1.1732]
[1739061092665,3.2078,2633.8,2633.6,2.72039655]
[1739061093069,3.2078,2633.8,2633.4,1.7622]
[1739061093272,0.5857,2633.7,2633.4,1.7622]
[1739061096076,3.7935,2633.7,2633.4,1.7622]
[1739061096877,3.7935,2633.7,2633.4,1.1619]
[1739061097076,0.5961,2633.6,2633.3,0.00570396]
[1739061100383,1.3554,2633.6,2633.3,0.00570396]
[1739061100581,0.5927,2633.5,2633.3,0.00570396]
[1739061101184,0.6043,2633.4,2633.3,0.00570396]
[1739061104987,3.8121,2633.4,2633.3,0.00570396]
[1739061112678,3.8121,2633.4,2633.3,1.22414884]
[1739061113981,4.57145,2633.4,2633.3,0.00570396]
[1739061114178,0.75945,2633.1,2632.7,1.21844488]
[1739061114388,4.9315,2633.0,2632.7,1.21844488]
[1739061115083,5.69099,2633.0,2632.7,1.21844488]
[1739061116188,4.9315,2633.0,2632.7,1.21844488]
[1739061116497,0.75955,2632.7,2632.6,0.00570396]
[1739061116686,3.2078,2632.7,2632.6,0.00570396]
[1739061116993,3.96735,2632.7,2632.6,0.00570396]
[1739061117184,3.2078,2632.7,2632.6,0.00570396]
[1739061117395,3.96735,2632.7,2632.6,0.00570396]
[1739061118189,0.7596,2632.6,2632.0,3.2078]
[1739061118391,3.2078,2632.4,2632.0,4.3559]
[1739061119596,3.2078,2632.4,2632.1,0.597]
[1739061119797,1.12400396,2632.5,2632.1,0.597]
[1739061120591,4.33180396,2632.5,2632.1,0.597]
[1739061128300,0.00570396,2632.5,2632.2,2.72435936]
[1739061129699,0.00570396,2632.5,2632.1,0.597]
[1739061130004,3.21350396,2632.5,2632.0,4.3559]
[1739061130504,0.6079,2632.4,2632.0,4.3559]
[1739061132799,0.6079,2632.4,2632.0,3.2078]
[1739061133106,3.2078,2632.1,2631.9,0.00570396]
[1739061133300,0.5539,2632.0,2631.9,0.00570396]
[1739061133497,1.6774,2632.0,2631.9,0.00570396]
[1739061137900,2.43716,2632.0,2631.9,0.00570396]
[1739061138904,2.43716,2632.0,2631.2,1.1491]
[1739061138905,0.7599,2631.6,2631.2,1.1491]
[1739061139100,3.8062,2631.5,2631.2,1.1491]
[1739061139304,3.8062,2631.5,2630.6,1.632]
[1739061139305,3.8062,2631.5,2630.7,2.72435936]
[1739061139513,3.2078,2631.2,2630.8,0.5617]
[1739061139908,0.5984,2631.1,2630.8,0.5617]
[1739061141209,0.5984,2631.1,2630.7,0.00570396]
[1739061143508,3.2078,2630.9,2630.7,0.00570396]
[1739061143712,1.1416,2630.8,2630.7,0.00570396]
[1739061144709,3.2078,2630.9,2630.7,0.00570396]
[1739061144915,0.5984,2631.1,2630.7,2.73006332]
[1739061145215,0.5984,2631.1,2630.8,1.7452]
[1739061146116,3.21350396,2631.2,2630.8,1.7452]
[1739061148918,0.00570396,2631.2,2630.8,1.7452]
[1739061151914,0.00570396,2631.2,2631.0,2.72435936]
[1739061158213,1.147,2631.9,2631.1,2.72435936]
[1739061158214,0.5581,2631.9,2631.1,2.72435936]
[1739061158423,0.5581,2631.9,2631.7,2.72435936]
[1739061158612,0.5581,2631.9,2631.8,1.2188]
[1739061158812,3.2078,2632.0,2631.8,1.2188]
[1739061159013,3.2078,2632.0,2631.8,1.8033]
[1739061160827,1.19030396,2632.2,2631.8,1.8033]
[1739061163029,3.2078,2632.0,2631.4,2.72435936]
[1739061163227,0.5612,2631.9,2631.4,2.72435936]
[1739061163624,0.5765,2631.8,2631.4,2.72435936]
[1739061164624,3.2078,2632.0,2631.7,2.72435936]
[1739061164826,0.5765,2632.1,2631.8,1.6807]
[1739061165322,0.00570396,2632.2,2632.0,2.72435936]
[1739061165620,0.00570396,2632.2,2632.0,5.93215936]
[1739061175428,0.00570396,2632.2,2632.0,2.72435936]
[1739061176532,0.00570396,2632.2,2631.7,5.93215936]
[1739061177627,7.37508336,2632.1,2631.4,2.72435936]
[1739061177829,1.7529,2632.0,2631.4,2.72435936]
[1739061178032,3.2078,2631.8,2631.4,2.72435936]
[1739061179131,3.2078,2631.8,2631.3,3.2078]
[1739061182245,4.16506868,2631.7,2631.3,3.2078]
[1739061182443,3.2078,2631.5,2630.8,3.28925936]
[1739061182647,4.3442,2631.4,2630.8,3.28925936]
[1739061182842,8.91494497,2631.4,2630.8,2.72435936]
[1739061185952,4.3571,2631.4,2631.1,2.72435936]
[1739061186537,4.3571,2631.4,2630.9,0.5892]
[1739061187643,0.5778,2631.4,2631.1,2.72435936]
[1739061187944,0.6039,2631.7,2631.1,5.93215936]
[1739061192956,0.6039,2631.7,2631.2,3.2078]
[1739061193248,0.6039,2631.7,2631.3,0.5664]
[1739061193653,4.3729,2632.1,2631.4,2.72435936]
[1739061193848,0.5989,2632.0,2631.4,3.88435936]
[1739061194152,0.5989,2632.0,2631.7,2.72435936]
[1739061194341,0.5989,2632.0,2631.8,0.5664]
[1739061202457,0.5577,2632.1,2631.8,0.5664]
[1739061203162,0.5577,2632.1,2631.9,0.5933]
[1739061206259,0.00570396,2632.2,2632.0,3.21595271]
[1739061206463,0.00570396,2632.2,2632.0,2.72435936]
[1739061206665,0.00570396,2632.2,2632.1,0.49153164]
[1739061207361,0.00570396,2632.2,2632.0,2.72435936]
[1739061208758,0.00570396,2632.2,2632.1,0.49134454]
[1739061212963,1.89802,2634.0,2632.1,0.49134454]
[1739061212964,0.5683,2633.1,2632.1,9.2157039]
[1739061213156,4.4033,2633.7,2632.9,2.72435936]
[1739061213360,0.5683,2633.6,2633.0,1.8047]
[1739061214169,0.57400396,2633.6,2633.1,3.2078]
[1739061214665,1.33331396,2633.6,2633.0,0.00570396]
[1739061214864,3.2078,2633.4,2633.0,0.00570396]
[1739061216071,0.57400396,2633.6,2633.0,0.00570396]
[1739061216275,0.57400396,2633.6,2633.0,1.18080396]
[1739061216571,3.97099673,2633.5,2633.0,1.18080396]
[1739061217664,3.97099673,2633.5,2633.0,0.59230396]
[1739061218773,7.17879673,2633.5,2633.0,0.59230396]
[1739061219970,3.2078,2633.5,2633.0,0.59230396]
[1739061220270,3.2078,2633.5,2633.0,1.16600396]
[1739061222875,0.57400396,2633.6,2633.0,1.16600396]
[1739061223577,0.57400396,2633.6,2633.2,2.72435936]
[1739061224682,4.27568168,2633.5,2633.0,0.00570396]
[1739061225176,3.2078,2633.4,2633.0,0.00570396]
[1739061226875,3.2078,2633.1,2633.0,0.00570396]
[1739061230578,3.96724,2633.1,2632.6,2.72435936]
[1739061231174,3.2078,2633.1,2632.6,2.72435936]
[1739061231680,1.7513,2633.2,2632.6,2.73006332]
[1739061231879,1.7513,2633.2,2632.7,4.3883]
[1739061232077,1.1637,2633.2,2632.9,2.72435936]
[1739061232978,0.5678,2633.2,2632.9,2.72435936]
[1739061233172,0.5687,2633.5,2632.9,2.72435936]
[1739061233373,0.5687,2633.5,2633.0,0.48303802]
[1739061233573,0.5879,2633.4,2632.9,2.72435936]
[1739061233779,0.5879,2633.4,2633.0,0.4831597]
[1739061234081,0.5879,2633.4,2632.9,2.72435936]
[1739061234280,0.5879,2633.4,2633.0,0.48315618]
[1739061234475,0.5879,2633.4,2633.1,0.48330881]
[1739061234779,0.5879,2633.4,2632.9,2.72435936]
[1739061234971,0.5879,2633.4,2633.0,0.48330259]
[1739061235167,0.5879,2633.4,2632.9,2.72435936]
[1739061235372,0.5879,2633.4,2633.0,0.48330892]
[1739061235572,0.5879,2633.4,2632.9,2.72435936]
[1739061235881,0.5879,2633.4,2633.0,0.4834834]
[1739061236069,0.5879,2633.4,2632.9,2.72435936]
[1739061236270,0.5879,2633.4,2633.2,2.72435936]
[1739061236473,0.5879,2633.4,2633.3,0.5664]
[1739061237574,0.5879,2633.4,2633.2,2.72435936]
[1739061238084,3.7957,2633.4,2632.7,0.5947]
[1739061238279,3.7957,2633.4,2632.8,0.48375632]
[1739061238474,3.7957,2633.4,2632.7,1.1953]
[1739061238781,3.7957,2633.4,2632.8,0.48395146]
[1739061238979,3.7957,2633.4,2632.7,1.1953]
[1739061239186,3.7957,2633.4,2632.8,0.48396533]
[1739061239385,3.7957,2633.4,2632.7,1.1953]
[1739061240076,3.7957,2633.4,2632.9,2.72435936]
[1739061241187,4.55507,2633.4,2632.7,1.1953]
[1739061241386,3.7957,2633.4,2632.6,2.73006332]
[1739061241579,3.2078,2633.1,2632.6,0.00570396]
[1739061241781,1.7771,2633.0,2632.6,0.00570396]
[1739061241974,5.80447393,2633.0,2632.6,0.00570396]
[1739061242983,0.75956,2632.7,2632.6,0.00570396]
[1739061244188,3.96735,2632.8,2632.6,0.00570396]
[1739061244486,4.29089764,2632.7,2632.6,0.00570396]
[1739061246785,11.92189764,2632.7,2632.0,2.72435936]
[1739061247083,3.2078,2632.5,2632.0,2.72435936]
[1739061247286,0.5669,2632.4,2632.0,2.72435936]
[1739061247482,4.63350688,2632.4,2632.0,2.72435936]
[1739061250084,1.1676,2632.4,2632.0,2.72435936]
[1739061251093,3.2078,2632.5,2632.0,2.72435936]
[1739061251295,0.6007,2632.7,2632.0,2.72435936]
[1739061253588,0.6007,2632.7,2632.1,0.561]
[1739061253886,0.6007,2632.7,2632.2,0.5811]
[1739061254086,0.6007,2632.7,2632.3,0.5862]
[1739061258492,1.36026,2632.7,2632.3,0.5862]
[1739061258686,1.36026,2632.7,2632.2,0.5811]
[1739061258895,3.2078,2632.5,2632.0,0.5564]
[1739061259089,0.5719,2632.4,2632.0,0.5564]
[1739061259294,0.5841,2632.3,2632.0,0.5564]
[1739061259497,1.1847,2632.3,2632.0,0.5564]
[1739061262594,3.2078,2632.1,2632.0,0.5564]
[1739061262795,1.1847,2632.3,2632.0,0.5564]
[1739061267301,3.2078,2632.4,2632.0,3.28075936]
[1739061267705,3.2078,2632.4,2632.3,2.72435936]
[1739061269307,0.5513,2632.8,2632.3,2.72435936]
[1739061269604,0.5513,2632.8,2632.4,1.1668]
[1739061269805,0.5513,2632.8,2632.5,0.5849]
[1739061272405,3.2078,2633.2,2632.6,5.93215936]
[1739061272607,3.8041,2633.2,2632.6,5.93215936]
[1739061273206,3.2078,2633.2,2632.6,5.93215936]
[1739061273608,2.994,2633.4,2632.6,5.93215936]
[1739061273808,4.3384,2633.5,2632.9,2.72435936]
[1739061274015,4.3384,2633.5,2633.0,4.9637]
[1739061275113,4.3384,2633.5,2633.1,0.48894255]
[1739061275314,4.3384,2633.5,2633.0,4.9637]
[1739061275620,4.3384,2633.5,2633.1,0.48872492]
[1739061275917,4.3384,2633.5,2633.0,1.7559]
[1739061276221,4.3384,2633.5,2633.1,0.48872773]
[1739061276516,4.3384,2633.5,2633.0,1.7559]
[1739061276815,4.19082891,2633.4,2632.7,0.5896]
[1739061277016,4.74692891,2633.4,2632.8,1.64750431]
[1739061277213,0.75939,2633.3,2632.8,0.5521]
[1739061277413,3.2078,2633.1,2632.5,0.6068]
[1739061277709,0.5962,2633.0,2632.6,0.48855009]
[1739061277913,1.1721,2633.0,2632.5,0.6068]
[1739061278108,1.1721,2633.0,2632.6,1.03316386]
[1739061278309,1.1721,2633.0,2632.6,0.5521]
[1739061279214,3.2078,2633.1,2632.7,0.48105274]
[1739061279407,1.1991,2633.3,2632.8,0.48101295]
[1739061279607,1.1991,2633.3,2632.6,3.27645936]
[1739061279814,1.1991,2633.3,2632.7,0.48100837]
[1739061280113,1.1991,2633.3,2632.8,0.48100837]
[1739061280312,1.1991,2633.3,2632.6,3.27645936]
[1739061280513,1.1991,2633.3,2632.7,0.48095501]
[1739061280715,1.1991,2633.3,2632.6,3.27645936]
[1739061280916,1.1991,2633.3,2632.7,0.48095406]
[1739061281118,1.1991,2633.3,2632.8,0.48095406]
[1739061281416,1.1991,2633.3,2632.6,3.27645936]
[1739061281616,1.1991,2633.3,2632.7,0.48088903]
[1739061281817,1.1991,2633.3,2632.8,0.48088903]
[1739061282010,1.1991,2633.3,2632.6,3.27645936]
[1739061282205,1.1991,2633.3,2632.7,0.48088641]
[1739061282411,1.1991,2633.3,2632.8,0.48088641]
[1739061282715,1.1991,2633.3,2632.6,3.27645936]
[1739061282912,1.1991,2633.3,2632.7,0.48083173]
[1739061283219,1.1991,2633.3,2632.8,0.48083173]
[1739061283418,1.1991,2633.3,2632.9,0.48074741]
[1739061283620,1.1991,2633.3,2632.7,3.2078]
[1739061283815,1.1991,2633.3,2632.8,1.05044584]
[1739061284017,0.6029,2633.3,2632.8,0.5697]
[1739061284218,0.6029,2633.3,2632.9,0.48074459]
[1739061284415,0.6029,2633.3,2633.0,0.5684]
[1739061284619,0.6029,2633.3,2633.1,0.5907]
[1739061285415,0.6029,2633.3,2632.8,0.5697]
[1739061285723,3.2078,2633.1,2632.4,3.2078]
[1739061286021,0.5501,2633.0,2632.5,0.48066383]
[1739061286217,1.1506,2633.0,2632.4,3.2078]
[1739061286417,0.5893,2632.9,2632.4,3.2078]
[1739061287320,3.96851783,2632.8,2632.4,3.2078]
[1739061288821,0.5893,2632.9,2632.4,3.2078]
[1739061291917,0.5893,2632.9,2632.3,4.43205936]
[1739061292227,3.7971,2632.9,2632.3,4.43205936]
[1739061297023,4.5566,2632.9,2632.3,4.43205936]
[1739061298122,3.7971,2632.9,2632.3,4.43205936]
[1739061299120,4.55661,2632.9,2632.3,4.43205936]
[1739061299732,3.7971,2632.9,2632.3,4.43205936]
[1739061301923,3.2078,2632.9,2632.3,4.43205936]
[1739061302433,3.2078,2632.9,2632.6,2.72435936]
[1739061302624,3.2078,2632.9,2632.7,0.6032]
[1739061302823,3.2078,2632.9,2632.8,1.1559]
[1739061303931,3.2078,2633.2,2632.8,1.1559]
[1739061306729,3.2078,2633.2,2632.5,3.2078]
[1739061306925,3.2078,2632.9,2632.4,1.7234]
[1739061307227,1.1826,2632.8,2632.4,1.7234]
[1739061307434,1.7652,2632.8,2632.4,1.7234]
[1739061309839,4.973,2632.8,2632.4,1.7234]
[1739061310523,4.3751,2632.8,2632.4,1.7234]
[1739061310728,3.2078,2632.8,2632.4,4.9312]
[1739061311032,3.2078,2633.1,2632.4,4.9312]
[1739061312933,3.2078,2633.1,2632.6,2.72435936]
[1739061313630,1.1332,2633.3,2632.6,2.72435936]
[1739061319738,0.5636,2633.3,2632.6,2.72435936]
[1739061320037,1.32299,2633.3,2632.6,2.72435936]
[1739061320228,0.5636,2633.3,2632.6,2.72435936]
[1739061323837,3.2078,2633.1,2632.6,2.72435936]
[1739061325644,3.7871,2633.1,2632.6,2.72435936]
[1739061325935,4.3737,2633.1,2632.6,2.72435936]
[1739061327137,0.5866,2633.1,2632.6,2.72435936]
[1739061327335,0.5636,2633.3,2632.6,2.72435936]
[1739061329346,0.5636,2633.3,2632.9,2.72435936]
[1739061329536,0.5636,2633.3,2633.0,1.7214]
[1739061340648,3.21350396,2633.6,2633.0,1.7214]
[1739061340851,0.5535,2633.5,2633.1,0.48719682]
[1739061341053,0.5535,2633.5,2633.0,1.7214]
[1739061341258,0.5535,2633.5,2633.1,0.48719501]
[1739061341445,0.5535,2633.5,2633.0,1.7214]
[1739061341642,0.5535,2633.5,2633.1,0.487195]
[1739061341846,0.5535,2633.5,2633.0,1.7214]
[1739061342051,0.00570396,2633.6,2633.3,3.2078]
[1739061342253,0.00570396,2633.6,2633.5,2.72435936]
[1739061342758,0.00570396,2633.6,2633.4,1.1608]
[1739061343457,3.21350396,2633.6,2633.3,0.00570396]
[1739061346560,0.00570396,2633.6,2633.3,0.00570396]
[1739061346859,3.2078,2633.4,2633.3,0.00570396]
[1739061351665,3.96715,2633.4,2633.3,0.00570396]
[1739061351869,6.69150936,2633.4,2633.3,0.00570396]
[1739061352066,0.7594,2633.3,2632.7,1.2068]
[1739061352260,3.2078,2633.1,2632.7,0.5977]
[1739061355363,0.5564,2633.0,2632.7,0.5977]
[1739061355563,0.587,2632.9,2632.7,0.5977]
[1739061356065,1.1802,2632.9,2632.7,0.5977]
[1739061356760,1.1802,2632.9,2632.6,0.61480396]
[1739061359272,1.9397,2632.9,2632.6,0.00570396]
[1739061359470,1.1802,2632.9,2632.6,0.00570396]
[1739061359669,1.93972,2632.9,2632.6,0.00570396]
[1739061363168,1.1802,2632.9,2632.6,0.00570396]
[1739061364770,3.7642,2633.0,2632.6,0.00570396]
[1739061365969,3.2078,2633.0,2632.6,2.73006332]
[1739061366274,3.2078,2633.0,2632.7,0.5675]
[1739061366462,3.2078,2633.0,2632.8,0.5729]
[1739061367671,3.2078,2633.0,2632.7,0.5675]
[1739061367974,0.5896,2632.9,2632.7,0.5675]
[1739061372677,3.2078,2633.0,2632.7,0.5675]
[1739061374681,3.2078,2633.0,2632.7,1.78639146]
[1739061377081,1.1656,2633.2,2632.7,1.78639146]
[1739061377275,4.3734,2633.2,2632.7,1.78639146]
[1739061379282,1.1656,2633.2,2632.7,1.78639146]
[1739061379482,4.3734,2633.2,2632.7,1.78639146]
[1739061385683,1.1656,2633.2,2632.7,1.78639146]
[1739061386187,4.3734,2633.2,2632.9,1.21889146]
[1739061386386,4.3734,2633.2,2633.0,0.5607]
[1739061386686,4.3734,2633.2,2633.0,1.1394]
[1739061388189,1.21889146,2633.1,2632.7,1.78639146]
[1739061388389,1.21889146,2633.1,2632.6,0.00570396]
[1739061389279,1.97834146,2633.1,2632.6,0.00570396]
[1739061389485,1.21889146,2633.1,2632.6,0.00570396]
[1739061389786,4.3734,2633.2,2632.7,1.21889146]
[1739061390186,1.21889146,2633.1,2632.7,1.21889146]
[1739061392192,1.21889146,2633.1,2632.6,0.00570396]
[1739061394193,5.13283,2633.2,2632.6,0.00570396]
[1739061394194,5.18620146,2632.9,2632.6,0.00570396]
[1739061394394,1.1683,2632.8,2632.6,0.00570396]
[1739061394688,1.7385,2632.8,2632.6,0.00570396]
[1739061394897,1.21889146,2632.7,2632.6,0.00570396]
[1739061396590,4.9463,2632.8,2632.6,0.00570396]
[1739061406700,0.5702,2632.8,2632.6,0.00570396]
[1739061407197,3.2078,2633.1,2632.6,0.00570396]
[1739061407395,0.5691,2633.0,2632.6,0.00570396]
[1739061410001,4.37666363,2632.9,2632.6,0.00570396]
[1739061410195,1.1481,2632.8,2632.6,0.00570396]
[1739061412897,0.5691,2633.0,2632.6,0.00570396]
[1739061416703,0.5691,2633.0,2632.7,1.21895735]
[1739061417005,0.5691,2633.0,2632.8,1.7391]
[1739061419501,1.78805735,2633.0,2632.8,1.1599]
[1739061419706,1.78805735,2633.0,2632.6,0.00570396]
[1739061420306,1.21895735,2632.8,2632.6,0.00570396]
[1739061420511,0.5708,2632.7,2632.6,0.00570396]
[1739061427809,1.78805735,2633.0,2632.6,0.00570396]
[1739061428011,2.34785735,2633.0,2632.6,0.58490396]
[1739061428206,0.5541,2632.9,2632.6,0.58490396]
[1739061428407,0.5541,2632.9,2632.6,0.00570396]
[1739061428607,4.42675735,2632.8,2632.6,0.00570396]
[1739061429809,3.2078,2632.8,2632.6,0.00570396]
[1739061432399,0.5541,2632.9,2632.6,0.00570396]
[1739061432597,0.5541,2632.9,2632.6,1.16460396]
[1739061432810,0.5541,2632.9,2632.6,0.00570396]
[1739061436705,2.34785735,2633.0,2632.6,0.00570396]
[1739061436706,1.1289,2633.0,2632.6,0.00570396]
[1739061436912,1.1289,2633.0,2632.7,1.21895735]
[1739061437114,1.1289,2633.0,2632.8,0.5674]
[1739061438507,0.5691,2633.0,2632.9,1.21895735]
[1739061440613,0.5691,2633.0,2632.8,0.5674]
[1739061440910,0.5615,2632.9,2632.7,1.82705735]
[1739061441813,0.5615,2632.9,2632.6,0.61250396]
[1739061442003,0.5633,2632.8,2632.6,0.61250396]
[1739061445413,3.7711,2632.8,2632.6,0.61250396]
[1739061445617,3.7711,2632.8,2632.6,0.00570396]
[1739061446410,0.5615,2632.9,2632.6,1.14510396]
[1739061446608,0.5615,2632.9,2632.7,0.575]
[1739061450214,0.5691,2633.0,2632.7,0.575]
[1739061462329,0.5691,2633.0,2632.6,1.14510396]
[1739061462330,3.96731,2632.9,2632.6,0.57440396]
[1739061462622,1.78628051,2632.8,2632.6,0.00570396]
[1739061462927,0.5541,2632.7,2631.8,4.36970108]
[1739061463117,1.21938051,2632.3,2631.9,1.7249]
[1739061463525,0.5652,2632.2,2631.9,1.7249]
[1739061470528,0.5652,2632.2,2631.9,1.1349]
[1739061470732,1.1605,2632.2,2631.9,1.1349]
[1739061471119,1.21938051,2632.1,2631.9,1.1349]
[1739061471325,8.76705043,2632.1,2631.8,0.00380266]
[1739061476732,9.52679043,2632.1,2631.8,0.00380266]
[1739061477730,3.2078,2632.0,2631.8,0.00380266]
[1739061477932,0.5512,2631.9,2631.8,0.00380266]
[1739061486636,3.2078,2632.0,2631.8,1.22318317]
[1739061486949,3.2078,2632.0,2631.9,0.5589]
[1739061489340,3.2078,2632.0,2631.9,1.144]
[1739061489738,3.96756,2632.0,2631.8,0.00380266]
[1739061490038,0.75979,2631.9,2631.8,0.00380266]
[1739061490829,3.96758,2632.0,2631.8,0.00380266]
[1739061491738,0.75979,2631.9,2631.8,0.00380266]
[1739061492135,6.15230098,2631.9,2631.8,0.00380266]
[1739061492335,6.15230098,2631.9,2631.2,1.21938051]
[1739061492336,1.21938051,2631.4,2631.2,0.5895]
[1739061492637,0.5909,2631.3,2631.2,0.5895]
[1739061492829,0.5909,2631.3,2631.0,1.78888051]
[1739061493032,1.7822,2631.3,2631.0,1.78888051]
[1739061493841,1.7822,2631.3,2631.0,1.21938051]
[1739061494139,3.2078,2631.5,2631.2,1.21938051]
[1739061494340,1.1499,2632.0,2631.4,4.42718051]
[1739061494538,1.1499,2632.0,2631.8,1.21938051]
[1739061494734,1.1499,2632.0,2631.5,2.72561305]
[1739061495134,1.1499,2632.0,2631.3,1.7151]
[1739061495337,4.12958571,2631.9,2631.3,1.7151]
[1739061495635,3.2078,2631.8,2631.3,1.7151]
[1739061500434,2.72561305,2631.4,2630.8,1.0874]
[1739061500629,5.76095066,2631.7,2630.7,1.1452]
[1739061500630,2.72561305,2631.1,2630.7,1.1452]
[1739061501033,0.89557619,2631.0,2630.7,1.1452]
[1739061501840,0.89557619,2631.0,2630.7,0.5572]
[1739061501841,3.2078,2630.9,2630.7,0.5572]
[1739061502035,0.5506,2630.8,2630.4,0.5591]
[1739061502341,1.1037,2630.8,2630.4,1.1163]
[1739061504243,3.2078,2630.9,2630.4,1.1163]
[1739061504541,1.63,2631.1,2630.5,0.5851]
[1739061504737,4.4049,2631.2,2630.5,0.5851]
[1739061504940,4.06412811,2631.0,2630.6,2.72561305]
[1739061505142,4.4049,2631.2,2630.6,2.72561305]
[1739061506133,0.5882,2631.2,2630.6,2.72561305]
[1739061507944,1.63570396,2631.4,2630.6,2.72561305]
[1739061511043,3.2078,2631.2,2630.5,0.5851]
[1739061511247,0.5551,2631.1,2630.4,1.1163]
[1739061511449,3.2078,2630.9,2630.4,1.1163]
[1739061511647,0.5866,2630.8,2630.4,1.1163]
[1739061515650,3.7944,2630.8,2630.4,1.1163]
[1739061517655,3.2078,2630.8,2630.4,1.1163]
[1739061517950,4.3231,2631.1,2630.6,2.72561305]
[1739061518159,1.1153,2631.1,2630.6,2.72561305]
[1739061518451,0.5602,2631.1,2630.7,0.5857]
[1739061518648,0.5883,2631.3,2630.8,0.5518]
[1739061518852,3.78100396,2631.4,2630.9,3.30961305]
[1739061526059,0.585,2631.3,2630.9,3.30961305]
[1739061531467,3.78100396,2631.4,2630.9,3.30961305]
[1739061539967,3.78100396,2631.4,2630.9,0.584]
[1739061543182,3.78100396,2631.4,2630.9,3.30961305]
[1739061544576,0.00570396,2631.4,2631.0,3.2078]
[1739061544778,0.00570396,2631.4,2631.1,0.5759]
[1739061544975,0.00570396,2631.4,2631.2,3.32371305]
[1739061545180,3.2078,2631.7,2631.5,2.72561305]
[1739061545382,3.2078,2631.7,2631.6,1.1578]
[1739061546076,0.607,2631.9,2631.6,1.1578]
[1739061546077,0.607,2631.9,2631.6,4.3656]
[1739061546275,0.00570396,2631.9,2631.8,2.72561305]
[1739061550277,0.00570396,2631.9,2631.8,5.93341305]
[1739061550776,0.00570396,2631.9,2631.8,2.72561305]
[1739061553584,0.00570396,2631.9,2631.7,1.6646]
[1739061553878,0.00570396,2631.9,2631.7,1.0874]
[1739061556281,0.00570396,2631.9,2631.8,2.72561305]
[1739061558078,0.00570396,2631.9,2631.8,5.93341305]
[1739061559988,0.5745,2632.9,2631.9,0.75977]
[1739061560186,0.5745,2632.9,2632.4,2.72561305]
[1739061560490,0.5859,2632.8,2632.5,0.5638]
[1739061561485,3.7937,2632.8,2632.5,0.5638]
[1739061561789,3.7937,2632.8,2632.4,2.73131701]
[1739061562381,3.7937,2632.8,2632.4,0.00570396]
[1739061563387,3.2078,2632.5,2632.4,0.00570396]
[1739061565288,0.5859,2632.8,2632.4,0.00570396]
[1739061565585,0.5859,2632.8,2632.4,2.73131701]
[1739061565782,0.5859,2632.8,2632.5,0.5831]
[1739061565982,0.5859,2632.8,2632.4,0.00570396]
[1739061566185,3.2078,2632.7,2632.4,0.00570396]
[1739061568989,0.5859,2632.8,2632.4,0.00570396]
[1739061569593,3.2078,2632.7,2632.4,0.00570396]
[1739061570193,5.06285518,2632.6,2632.4,0.00570396]
[1739061570392,0.561,2632.5,2631.8,5.93341305]
[1739061570594,0.5764,2632.4,2631.8,5.93341305]
[1739061571593,0.5764,2632.4,2631.8,5.93911701]
[1739061571801,3.2078,2632.2,2631.8,3.21350396]
[1739061573698,0.569,2632.1,2631.8,3.21350396]
[1739061573891,0.5601,2632.0,2631.8,3.21350396]
[1739061574598,0.5601,2632.0,2631.8,0.00570396]
[1739061575788,0.569,2632.1,2631.8,2.73131701]
[1739061575985,0.569,2632.1,2631.9,1.1292]